Cogmind - Beta 15 @@@ ROGUE MODE // 2025.08.01 @ 20:24:37 Player: ilja Result: Destroyed by G-50 Soldier with Heavy Laser Performance ------------- Evolutions (4) 2000 Regions Visited (8) 1600 Robots Destroyed (70) 350 Value Destroyed (2410) 2410 Prototype IDs (6) 120 Alien Tech Used (0) 0 Bonus (500) 500 TOTAL SCORE: 6980 Bonus ------- Entered DSFs 500 Cogmind --------- Core Integrity 0/850 Matter 47/300 Energy 100/100 System Corruption 8% Temperature Cool (27) Movement Core (800) Ox15 Location -6/Extension Parts ------- > --- POWER (2) -------- (None) > --- PROPULSION (2) --- (None) > --- UTILITY (9) ------ High-capacity Storage Unit Advanced Visual Processing Unit Advanced Visual Processing Unit > --- WEAPON (2) ------- Katana Falx > --- INVENTORY (20) --- Armored Treads Arc Projector Particle Gun Advanced Beam Rifle Cooled Particle Cannon Phase Cannon Compact Ion Cannon High-powered Shotgun Gauss Rifle Coil Gun Shock Bomb Launcher Proton Missile Launcher Remote Datajack Mining Laser Maul Peak State ------------ > --- POWER ------------ Light Ion Engine Fission Core > --- PROPULSION ------- Compact Wheel Armored Wheel > --- UTILITY ---------- High-capacity Storage Unit Advanced Visual Processing Unit Advanced Visual Processing Unit Improved Signal Interpreter Improved Heavy Armor Plating Hacking Suite Drone Bay > --- WEAPON ----------- Cooled Particle Cannon Gauss Rifle > --- INVENTORY -------- Armored Treads Arc Projector Particle Gun Advanced Beam Rifle Phase Cannon Compact Ion Cannon Heavy Assault Rifle High-powered Shotgun Coil Gun Shock Bomb Launcher Proton Missile Launcher Remote Datajack Mining Laser Maul Katana Falx [Rating: 51] Favorites ----------- Power Ion Engine Engine Ion Engine Power Core Light Nuclear Core Propulsion Armored Wheel Treads Armored Treads Wheel Armored Wheel Utility High-capacity Storage Unit Device Improved Terrain Scanner Storage High-capacity Storage Unit Processor Advanced Visual Processing Unit Hackware Hacking Suite Protection Power Shielding Weapon Heavy Assault Rifle Energy Gun Advanced Beam Rifle Energy Cannon Compact Ion Cannon Ballistic Gun Heavy Assault Rifle Launcher Shock Bomb Launcher Special Weapon Remote Datajack Impact Weapon Maul Slashing Weapon Katana Build | -11 -10 -9 -9 -8 -7 -7 -6 -6 ------- Run | Yrd Mat Mat Min Mat Fac DSF Fac Ext Slots Evolved 8 | . . 2 . 2 2 . 2 . Power 1 | . . . . . 1 . . . Propulsion . | . . . . . . . . . Utility 7 | . . 2 . 2 1 . 2 . Weapon . | . . . . . . . . . Parts Attached 72 | 7 2 10 . 20 . 3 25 5 Power 11 | 1 . 1 . 3 . 1 5 . Engine 7 | 1 . 1 . 2 . 1 2 . Core 4 | . . . . 1 . . 3 . Reactor . | . . . . . . . . . Propulsion 14 | 2 1 3 . 4 . . 4 . Treads 4 | . . . . 2 . . 2 . Leg . | . . . . . . . . . Wheel 10 | 2 1 3 . 2 . . 2 . Hover . | . . . . . . . . . Flight . | . . . . . . . . . Utility 21 | 2 1 2 . 7 . 1 7 1 Device 7 | 1 . 1 . 1 . . 3 1 Storage 2 | 1 1 . . . . . . . Processor 4 | . . 1 . 1 . 1 1 . Hackware 1 | . . . . . . . 1 . Protection 7 | . . . . 5 . . 2 . Artifact . | . . . . . . . . . Weapon 26 | 2 . 4 . 6 . 1 9 4 Energy Gun 3 | . . . . 2 . . . 1 Energy Cannon 3 | . . . . . . . 2 1 Ballistic Gun 11 | 2 . 4 . 2 . 1 2 . Ballistic Cannon . | . . . . . . . . . Launcher 5 | . . . . 1 . . 2 2 Special Weapon 1 | . . . . . . . 1 . Impact Weapon 1 | . . . . 1 . . . . Slashing Weapon 2 | . . . . . . . 2 . Piercing Weapon . | . . . . . . . . . Special Melee Weapon . | . . . . . . . . . Unidentified Prototypes 6 | . . . . 2 . . 3 1 Parts Lost 36 | . 1 1 . 7 . 1 18 8 Power 8 | . . 1 . . . . 6 1 Propulsion 7 | . 1 . . . . . 4 2 Utility 16 | . . . . 5 . 1 6 4 Weapon 5 | . . . . 2 . . 2 1 Highest Loss Streak 5 | . 1 1 . 3 . 1 4 5 To Critical Strikes . | . . . . . . . . . Average Backups 15 | 4 10 18 19 16 18 18 16 15 Power 2 | . 2 2 3 3 4 3 1 . Propulsion 4 | 2 3 5 5 5 5 5 4 1 Utility 1 | . 1 4 5 2 2 2 . . Weapon 7 | 1 2 5 6 6 7 7 9 13 Tool/Special . | . . . . . . . . . Unused Backups 8 | 1 1 2 . 1 . . . 3 Power . | . . . . . . . . . Propulsion 1 | . . 1 . . . . . . Utility 1 | . . 1 . . . . . . Weapon 6 | 1 1 . . 1 . . . 3 Tool/Special . | . . . . . . . . . Average Slot Usage (%) 86 | . 96 99 100 92 76 77 74 75 Engine 6 | . 14 10 11 5 . 2 5 3 Core 3 | . . . . 3 7 7 5 4 Wheel 15 | . 24 22 22 16 15 15 8 9 Device 12 | . 14 22 22 12 7 4 7 5 Storage 8 | . 14 11 11 9 7 7 6 6 Processor 11 | . . 10 11 9 7 9 14 19 Hackware 2 | . . . . . . . 5 5 Protection 6 | . . . . 16 15 15 4 5 Energy Gun 2 | . . . . 5 7 7 1 . Energy Cannon 1 | . . . . . . . 4 3 Ballistic Gun 11 | . 28 22 22 11 7 7 2 1 Slashing Weapon 1 | . . . . . . . 3 1 Peak Build Rating 51 | 10 10 17 16 32 32 35 49 51 Average Rating 25 | 5 9 15 16 22 32 32 36 45 On Entrance 21 | . 9 10 16 16 32 32 35 44 Naked Turns . | . . . . . . . . . Heaviest Build 89 | 14 49 54 54 74 72 78 89 87 Greatest Support 40 | 20 20 28 28 40 24 24 40 28 Greatest Overweight (x) 17 | . 4 2 1 2 2 3 17 15 Average Overweight (x) 2 | . 2 1 1 1 2 2 2 3 Largest Inventory Capacity 20 | 8 20 20 20 20 20 20 20 20 Average Capacity 19 | 7 18 20 20 20 20 20 20 20 Most Carried 20 | 8 15 20 19 18 18 19 20 18 Average Carried 15 | 4 10 18 19 16 18 18 16 15 Final Capacity 20 | 8 20 20 20 20 20 20 20 20 Final Carried 19 | 8 15 19 19 18 18 18 18 15 Class Distribution -------------------- 50% | Scavenger-Mutant 44% | Mutant 4% | Scavenger-Skirmisher Dominant Class ---------------- Mutant | -10/Materials Mutant | -9/Materials Scavenger-Mutant | -9/Mines Mutant | -8/Materials Mutant | -7/Factory Scavenger-Mutant | -7/DSF Scavenger-Mutant | -6/Factory Scavenger-Mutant | -6/Extension Resources | -11 -10 -9 -9 -8 -7 -7 -6 -6 ----------- Run | Yrd Mat Mat Min Mat Fac DSF Fac Ext Matter Collected 1539 | 346 75 228 10 361 . 77 415 27 Remotely . | . . . . . . . . . Salvage Created 3014 | 169 103 414 . 776 . 276 1033 243 Parts 175 | 20 12 31 . 48 . 15 44 5 Haulers Intercepted 1 | . . . . 1 . . . . Recyclers Shooed 1 | . . . . . . . 1 . Parts Field Recycled . | . . . . . . . . . Retrieved Matter . | . . . . . . . . . Parts Self-Destructed . | . . . . . . . . . Prevented . | . . . . . . . . . Kills | -11 -10 -9 -9 -8 -7 -7 -6 -6 ------- Run | Yrd Mat Mat Min Mat Fac DSF Fac Ext Combat Hostiles Destroyed 49 | . 3 9 . 17 . 5 14 1 Melee 1 | . . . . . . . 1 . Guns 35 | . 3 9 . 15 . 5 2 1 Cannons 5 | . . . . . . . 5 . AOE 4 | . . . . 2 . . 2 . Classes Destroyed 16 | 3 4 1 . 3 . 1 3 1 Worker 4 | 2 . . . . . . 1 1 Builder 2 | . . . . . . . 2 . Tunneler 5 | 4 . . . . . . . 1 Hauler 1 | . . . . 1 . . . . Recycler 4 | 1 . . . . . . 2 1 Operator 2 | . 1 1 . . . . . . Drone 1 | . . . . . . . . 1 Watcher 3 | . 1 2 . . . . . . Swarmer 9 | . 2 3 . 4 . . . . Grunt 16 | . 1 1 . 9 . 1 4 . Duelist 1 | . . . . 1 . . . . Sentry 8 | . . 5 . 2 . . . 1 Specialist 10 | . . . . . . 4 6 . Hunter 2 | . . . . . . . 2 . Programmer 1 | . . . . . . . 1 . Heavy 2 | . . . . 1 . . 1 . Best Kill Streak 8 | 2 2 4 . 8 . 2 2 3 Combat Bots Only 8 | . 2 3 . 8 . 2 2 1 Max Kills in Single Turn 2 | 2 1 1 . 2 . 1 2 1 Gunslinging 1 | . . . . 1 . . . . Exploded 2 | . . . . 2 . . 1 . Melee 1 | . . . . . . . 1 . Uniques/NPCs Destroyed . | . . . . . . . . . Combat | -11 -10 -9 -9 -8 -7 -7 -6 -6 -------- Run | Yrd Mat Mat Min Mat Fac DSF Fac Ext Hostile Shots Fired 564 | . 22 65 . 95 . 51 191 140 Missed 158 | . 5 14 . 24 . 18 44 53 Hits 406 | . 17 51 . 71 . 33 147 87 Projectile 406 | . 17 51 . 71 . 33 147 87 Critical Strikes 19 | . . 3 . 3 . 1 7 5 Part Disruptions 5 | . . . . . . . 5 . Damage Taken 6380 | . 176 657 . 1375 . 546 2279 1347 Core 1321 | . 22 174 . 232 . 39 514 340 Absorbed by Shields 31 | . . . . . . 31 . . Redirected to Shielding 51 | . . . . 37 . 7 7 . Ignored by Resistances 29 | . . . . . . . 29 . Core Remaining (%) 79 | 100 91 . 56 57 . 94 . . Volleys Fired 200 | 19 16 33 . 43 . 13 57 19 Largest 2 | 2 2 2 . 2 . 2 2 2 Hottest 175 | 40 40 46 . 86 . 86 175 75 Shots Fired 367 | 38 32 66 . 82 . 26 92 31 Gun 279 | 38 32 66 . 82 . 26 29 6 Cannon 71 | . . . . . . . 58 13 Launcher 16 | . . . . . . . 4 12 Special 1 | . . . . . . . 1 . Kinetic 229 | 38 32 66 . 55 . 13 19 6 Thermal 114 | . . . . 21 . 13 67 13 Explosive 4 | . . . . . . . 4 . Electromagnetic 19 | . . . . 6 . . 1 12 Robot Hit Streak 11 | 7 5 7 . 11 . 10 11 6 Robot Miss Streak 6 | 6 3 5 . 2 . 3 5 3 Penetration Max . | . . . . . . . . . Secondary Targets 7 | . . 1 . 3 . 3 . . Max Gunslinging Chain 1 | . . 1 . 1 . 1 . . Shots Hit Robots 256 | 20 18 41 . 62 . 18 78 19 Core Hits 129 | 8 8 23 . 34 . 10 34 12 Critical Kills 3 | . . . . 1 . . 2 . Critical Parts Destroyed 1 | . . . . . . . . 1 Critical Strikes 13 | . . . . 3 . . 9 1 Burn 2 | . . . . 1 . . 1 . Meltdown 2 | . . . . . . . 2 . Destroy 3 | . . . . 2 . . . 1 Sever 6 | . . . . . . . 6 . Melee Attacks 21 | . . . . 4 . . 17 . Impact 4 | . . . . 4 . . . . Slashing 17 | . . . . . . . 17 . Piercing . | . . . . . . . . . Sneak Attacks 2 | . . . . . . . 2 . Combat Hostiles . | . . . . . . . . . Follow-up Attacks . | . . . . . . . . . Damage Inflicted 5769 | 244 211 482 . 1184 . 363 2380 905 Guns 2759 | 244 196 455 . 1005 . 363 389 107 Cannons 1387 | . . . . . . . 1140 247 Explosions 940 | . . . . 78 . . 311 551 Melee 624 | . . . . 101 . . 523 . Ramming 59 | . 15 27 . . . . 17 . Kinetic 1991 | 244 196 455 . 594 . 163 232 107 Thermal 2145 | . . . . 418 . 200 1280 247 Explosive 311 | . . . . . . . 311 . Electromagnetic 639 | . . . . 71 . . 17 551 Impact 101 | . . . . 101 . . . . Slashing 523 | . . . . . . . 523 . Piercing . | . . . . . . . . . Highest Corruption 8 | . . . . . . . 7 8 Average Corruption 6 | . . . . . . . 5 7 Corruption Purged . | . . . . . . . . . Corruption Blocked . | . . . . . . . . . Effects 30 | . . . . . . . 20 10 Message Errors 8 | . . . . . . . 7 1 Matter Fused 5 | . . . . . . . 5 . Heat Flow Errors 6 | . . . . . . . 2 4 Energy Discharges 2 | . . . . . . . 1 1 Parts Rejected 2 | . . . . . . . 1 1 Data Loss (minor) 1 | . . . . . . . . 1 Data Loss (major) 1 | . . . . . . . . 1 Misfires 1 | . . . . . . . . 1 Alerts 2 | . . . . . . . 2 . Weapon Failures 2 | . . . . . . . 2 . Overload Shots . | . . . . . . . . . Overflow Damage 62 | . . . . . . . 12 50 Projectiles 12 | . . . . . . . 12 . Explosions 50 | . . . . . . . . 50 Melee . | . . . . . . . . . Knockbacks 2 | . . 1 . . . . 1 . Impact 2 | . . 1 . . . . 1 . Kinetic . | . . . . . . . . . Secondary . | . . . . . . . . . Self-Inflicted Damage 101 | . 7 13 . 36 . . 27 18 Shots 4 | . . . . 1 . . 1 2 Rammed 5 | . 1 1 . . . . 3 . Targets Rammed 5 | . 1 1 . . . . 3 . Kicked . | . . . . . . . . . Crushed . | . . . . . . . . . Highest Temperature 492 | . 12 24 . 346 . 39 492 260 Average Temperature 92 | . 7 7 . 109 . 17 114 69 Received Heat Transfer 1578 | . 72 210 . 486 . 117 513 180 Effects 5 | . . . . 1 . . 4 . Shutdowns 2 | . . . . . . . 2 . Energy Bleed 2 | . . . . 1 . . 1 . Matter Decay 1 | . . . . . . . 1 . Siege Activations . | . . . . . . . . . Martial Activations . | . . . . . . . . . Shielding Activations . | . . . . . . . . . Robots Disrupted . | . . . . . . . . . Combat Hostiles . | . . . . . . . . . Robots Corrupted 1 | . . . . . . . . 1 Combat Hostiles . | . . . . . . . . . Parts Fried 7 | . . . . . . . . 7 Impact Corruptions . | . . . . . . . . . Robots Melted 4 | . . . . . . . 4 . Combat Hostiles 4 | . . . . . . . 4 . Parts Melted 8 | . . . . 2 . . 6 . Heat Transferred 3319 | . . . . 803 . 370 1813 333 Parts Sabotaged . | . . . . . . . . . Parts Stolen . | . . . . . . . . . Parts Stripped . | . . . . . . . . . Power Chain Reactions 1 | . . . . 1 . . . . Alert | -11 -10 -9 -9 -8 -7 -7 -6 -6 ------- Run | Yrd Mat Mat Min Mat Fac DSF Fac Ext Maximum Alert Level 1 | . . . . 1 . . . . Low Security (%) 99 | 100 100 100 100 98 100 100 100 100 Level 1 . | . . . . 1 . . . . Level 2 . | . . . . . . . . . Level 3 . | . . . . . . . . . Level 4 . | . . . . . . . . . Level 5 . | . . . . . . . . . High Security . | . . . . . . . . . Max Security . | . . . . . . . . . Peak Influence 202 | 10 65 105 10 202 85 174 91 40 Initial 91 | . . 14 10 . 80 59 91 . Average 44 | 1 11 27 2 109 81 109 29 7 Influence Increases 1618 | 35 112 274 . 528 5 125 458 81 Destroy 0b10 Robot/C 980 | . 60 180 . 340 . 100 280 20 Destroy 0b10 Robot/NC 105 | 35 10 15 . 5 . . 25 15 Destroy Leader 238 | . 12 64 . 72 . 10 80 . Successful Hack 5 | . . . . . 5 . . . Disable Machine 45 | . . 15 . . . . 30 . Destroy Structure 35 | . . . . 6 . . 28 1 Partial Spotted 15 | . 15 . . . . . . . Lose Combat Pursuer 195 | . 15 . . 105 . 15 15 45 Influence Decreases 1618 | 35 77 282 27 350 98 36 632 81 Entered New Map 245 | . . 21 17 . 98 26 83 . Time Decay 1073 | 35 72 251 10 290 . . 369 46 Lost Part 300 | . 5 10 . 60 . 10 180 35 Squads Dispatched 17 | . 2 2 . 2 . 1 9 1 Investigation 1 | . 1 . . . . . . . Extermination 2 | . . . . . . . 2 . Reinforcement 14 | . 1 2 . 2 . 1 7 1 Assault . | . . . . . . . . . Garrison . | . . . . . . . . . Intercept . | . . . . . . . . . Searches Triggered . | . . . . . . . . . Construction Impeded 2 | . . . . . . . 1 1 Haulers Reinforced . | . . . . . . . . . Active Scanning Responses . | . . . . . . . . . Cargo Convoy Interrupts . | . . . . . . . . . Stealth | -11 -10 -9 -9 -8 -7 -7 -6 -6 --------- Run | Yrd Mat Mat Min Mat Fac DSF Fac Ext Distress Signals 7 | . 1 3 . 1 . . . 2 Communications Jammed . | . . . . . . . . . Distress Signals . | . . . . . . . . . Times Spotted 95 | . 9 22 . 23 . 8 24 9 Peak Tracking Total 6 | . 4 6 . 5 . 3 3 4 Tactical Retreats 14 | . 1 5 . 3 . 1 1 3 Traps | -11 -10 -9 -9 -8 -7 -7 -6 -6 ------- Run | Yrd Mat Mat Min Mat Fac DSF Fac Ext Traps Triggered 4 | . . . . 1 . 3 . . Indirectly . | . . . . . . . . . Trap Hack Attempts . | . . . . . . . . . Triggered . | . . . . . . . . . Disarmed . | . . . . . . . . . Reprogrammed . | . . . . . . . . . Reused . | . . . . . . . . . Traps Extracted . | . . . . . . . . . Installed . | . . . . . . . . . Triggered . | . . . . . . . . . Machines | -11 -10 -9 -9 -8 -7 -7 -6 -6 ---------- Run | Yrd Mat Mat Min Mat Fac DSF Fac Ext Machines Disabled 3 | . . 1 . . . . 2 . Max in Single Turn 1 | . . 1 . . . . 1 . Machines Repaired . | . . . . . . . . . Machines Dismantled . | . . . . . . . . . Machines Sabotaged . | . . . . . . . . . Overloaded Fab Kills . | . . . . . . . . . Hacking | -11 -10 -9 -9 -8 -7 -7 -6 -6 --------- Run | Yrd Mat Mat Min Mat Fac DSF Fac Ext Machines Accessed 4 | . 2 1 . . 1 . . . Terminals 4 | . 2 1 . . 1 . . . Fabricators . | . . . . . . . . . Repair Stations . | . . . . . . . . . Recycling Units . | . . . . . . . . . Scanalyzers . | . . . . . . . . . Garrison Access . | . . . . . . . . . Total Hacks 8 | . 4 3 . . 1 . . . Successful 5 | . 2 2 . . 1 . . . Failed 3 | . 2 1 . . . . . . Catastrophic 1 | . 1 . . . . . . . Database Lockouts . | . . . . . . . . . Manual . | . . . . . . . . . Terminals 8 | . 4 3 . . 1 . . . Fabricators . | . . . . . . . . . Repair Stations . | . . . . . . . . . Recycling Units . | . . . . . . . . . Scanalyzers . | . . . . . . . . . Garrison Access . | . . . . . . . . . Terminal Hacks 5 | . 2 2 . . 1 . . . Record 3 | . 1 2 . . . . . . Robot Analysis 1 | . 1 . . . . . . . Open DSF 1 | . . . . . 1 . . . Fabricator Hacks . | . . . . . . . . . Repair Station Hacks . | . . . . . . . . . Recycling Unit Hacks . | . . . . . . . . . Scanalyzer . | . . . . . . . . . Garrison Access Hacks . | . . . . . . . . . Unauthorized Hacks . | . . . . . . . . . Terminals . | . . . . . . . . . Fabricators . | . . . . . . . . . Repair Stations . | . . . . . . . . . Recycling Units . | . . . . . . . . . Scanalyzers . | . . . . . . . . . Garrison Access . | . . . . . . . . . Data Cores Recovered 1 | . 1 . . . . . . . Used . | . . . . . . . . . Hacking Detections 1 | . . 1 . . . . . . Full Trace Events . | . . . . . . . . . Feedback Events . | . . . . . . . . . Feedback Blocked . | . . . . . . . . . Robot Schematics Acquired . | . . . . . . . . . Robots Built . | . . . . . . . . . Authchips . | . . . . . . . . . Time . | . . . . . . . . . Total Robot Build Rating . | . . . . . . . . . Part Schematics Acquired . | . . . . . . . . . Parts Built . | . . . . . . . . . Authchips . | . . . . . . . . . Time . | . . . . . . . . . Total Part Build Rating . | . . . . . . . . . Parts Repaired . | . . . . . . . . . Time . | . . . . . . . . . Parts Recycled . | . . . . . . . . . Recycled Matter . | . . . . . . . . . Retrieved Matter . | . . . . . . . . . Retrieved Components . | . . . . . . . . . Parts Scanalyzed . | . . . . . . . . . Part Schematics Acquired . | . . . . . . . . . Parts Damaged . | . . . . . . . . . Bothacking | -11 -10 -9 -9 -8 -7 -7 -6 -6 ------------ Run | Yrd Mat Mat Min Mat Fac DSF Fac Ext Used RIF Installer . | . . . . . . . . . Robots Hacked 1 | . . . . . . . 1 . Non-combat . | . . . . . . . . . Combat 1 | . . . . . . . 1 . Robot Hacks Applied 1 | . . . . . . . 1 . parse_system 1 | . . . . . . . 1 . Relay Couplers Released . | . . . . . . . . . Fabnet Peak Effective % . | . . . . . . . . . Robots Rewired . | . . . . . . . . . Allies Hacked . | . . . . . . . . . Hacks Repelled . | . . . . . . . . . Allies | -11 -10 -9 -9 -8 -7 -7 -6 -6 -------- Run | Yrd Mat Mat Min Mat Fac DSF Fac Ext Total Allies . | . . . . . . . . . Largest Group . | . . . . . . . . . Highest-Rated Group . | . . . . . . . . . Highest-Rated Ally . | . . . . . . . . . Total Orders . | . . . . . . . . . Ally Attacks . | . . . . . . . . . Total Damage . | . . . . . . . . . Kills . | . . . . . . . . . Allies Corrupted . | . . . . . . . . . Allies Melted . | . . . . . . . . . Intel | -11 -10 -9 -9 -8 -7 -7 -6 -6 ------- Run | Yrd Mat Mat Min Mat Fac DSF Fac Ext Active Infowar (turns) 3784 | 14 301 838 81 890 8 114 1235 303 Optics 1582 | . . . . . . 44 1235 303 Sensors 968 | . . . . 890 8 70 . . Terrain 2227 | 14 301 838 81 205 . . 788 . ECM 1068 | . . 838 81 149 . . . . Robot Analysis Total 1 | . 1 . . . . . . . Derelict Logs Recovered . | . . . . . . . . . Drone Launches 4 | . . . . . . . . 4 Drone Recoveries 2 | . . . . . . . . 2 Exploration | -11 -10 -9 -9 -8 -7 -7 -6 -6 ------------- Run | Yrd Mat Mat Min Mat Fac DSF Fac Ext Turns Passed 4014 | 229 301 844 81 890 8 123 1235 303 Spaces Moved 2297 | 194 215 576 74 471 7 42 572 146 Core 14 | 3 . . . . . . 8 3 Treads 32 | . . . . 9 . . 23 . Legs . | . . . . . . . . . Wheels 2251 | 191 215 576 74 462 7 42 541 143 Hover . | . . . . . . . . . Flight . | . . . . . . . . . Fastest Speed 50 | 50 80 110 110 110 120 120 110 125 Average Speed 126 | 79 110 116 110 123 120 129 152 161 Slowest Speed 900 | 80 140 120 110 240 120 135 900 800 Overloaded Moves . | . . . . . . . . . Propulsion Burnouts . | . . . . . . . . . Robots Hopped . | . . . . . . . . . Potential Cave-ins . | . . . . . . . . . Cave-ins Triggered . | . . . . . . . . . Exploration Rate (%) 26 | 6 33 39 29 30 . 40 12 21 Regions Visited 8 Branch Regions 2 Pre-discovered Areas . | . . . . . . . . . Known Exits Taken 5 | . . 1 1 1 1 . 1 . Unknown Exits Taken 2 | 1 1 . . . . . . . Scrap Searched . | . . . . . . . . . Spaces Dug . | . . . . . . . . . Terrain Destroyed 33 | . . . . 3 . . 29 1 Melee . | . . . . . . . . . Projectile 9 | . . . . . . . 8 1 AOE 24 | . . . . 3 . . 21 . Terrain Rammed . | . . . . . . . . . Walls Destroyed . | . . . . . . . . . Machines Disabled . | . . . . . . . . . Actions | -11 -10 -9 -9 -8 -7 -7 -6 -6 --------- Run | Yrd Mat Mat Min Mat Fac DSF Fac Ext Total 3018 | 232 251 691 73 692 6 87 804 182 Wait 295 | . 7 49 . 139 . 6 94 . Move 2289 | 193 214 575 73 470 6 41 571 146 Hop . | . . . . . . . . . Pick Up 65 | 11 9 14 . 9 . 2 19 1 Fast Attach 15 | 6 . . . 4 . . 5 . Attach 32 | 1 1 3 . 5 . 2 16 4 Detach . | . . . . . . . . . Swap 51 | . 1 8 . 12 . 1 17 12 Drop 23 | 2 2 8 . 6 . . 5 . Fire 200 | 19 16 33 . 43 . 13 57 19 Melee 21 | . . . . 4 . . 17 . Ram 5 | . 1 1 . . . . 3 . Kick . | . . . . . . . . . Crush . | . . . . . . . . . Escape Stasis 22 | . . . . . . 22 . . Rewire . | . . . . . . . . . Trap . | . . . . . . . . . Miscellaneous . | . . . . . . . . . Route ------- -11/Scrapyard -10/Materials -9/Materials -9/Mines -8/Materials -7/Factory -7/DSF -6/Factory -6/Extension History --------- Turn | Location | Event 26 | -11/Scrapyard | Discovered new exit (range 16) 230 | -11/Scrapyard | Entered Materials 231 | -10/Materials | Met a group of wandering Federalists 307 | -10/Materials | Build established: Mutant 372 | -10/Materials | Discovered new exit (range 13) 388 | -10/Materials | Lost 5 allies 531 | -10/Materials | Entered another Materials area 531 | -9/Materials | Evolved 2 slots: Utility x2 1287 | -9/Materials | Build established: Scavenger-Mutant 1359 | -9/Materials | Discovered new exit (range 12) 1372 | -9/Materials | Identified exit to Mines 1375 | -9/Materials | Entered Mines 1446 | -9/Mines | Discovered new exit (range 7) 1454 | -9/Mines | Identified exit to Materials 1456 | -9/Mines | Entered Materials 1456 | -8/Materials | Evolved 2 slots: Utility x2 1699 | -8/Materials | Destroyed 8 combat bots 1949 | -8/Materials | Lost 3 parts (2u1w) 2195 | -8/Materials | Build established: Mutant 2320 | -8/Materials | Discovered new exit (range 12) 2344 | -8/Materials | Identified exit to Factory 2346 | -8/Materials | Entered Factory 2346 | -7/Factory | Evolved 2 slots: Power x1, Utility x1 2352 | -7/Factory | Identified exit to DSF 2354 | -7/Factory | Entered DSF 2409 | -7/DSF | Additional patrols routed to DSF 2437 | -7/DSF | Discovered new exit (range 19) 2475 | -7/DSF | Identified exit to Factory 2477 | -7/DSF | Entered Factory 2477 | -6/Factory | Evolved 2 slots: Utility x2 2711 | -6/Factory | Build established: Scavenger-Mutant 2980 | -6/Factory | Lost 4 parts (2p1n1w) 3098 | -6/Factory | Lost 4 parts (1p2n1u) 3338 | -6/Factory | Core integrity fell below 50% 3387 | -6/Factory | Lost 4 parts (2p1n1u) 3462 | -6/Factory | Found Prototype Launcher 3463 | -6/Factory | Identified Scatter Rocket Array 3630 | -6/Factory | Discovered new exit (range 15) 3710 | -6/Factory | Identified exit to Extension 3712 | -6/Factory | Entered Extension 3845 | -6/Extension | Spotted B-75 Beast 3962 | -6/Extension | Disrupted transfer network 3998 | -6/Extension | Core integrity fell below 20% 4015 | -6/Extension | Destroyed by G-50 Soldier with Heavy Laser Last Messages --------------- 03970_ Acquired 5 matter. 03971_ U-05 Engineer builds a Wall. 03976_ Slug penetrates R-10 Processor. 03976_ R-10 Processor suffers critical hit (Destroy). 03976_ Destroyed Com. Wheel. 03985_ System corrupted: Heat flow error (+292). 03985_ U-05 Engineer builds a Wall. 03986_ Acquired 4 matter. 03987_ Imp. Signal Interpreter destroyed. 03987_ Critical hit (Blast). 03990_ Knocked back. 03990_ Imp. Heavy Armor Plating destroyed. 03992_ Acquired 4 matter. 03997_ Com. Wheel destroyed. 03997_ Drone Bay destroyed. 03997_ Knocked back. 03998_ >> Lost connection to Drone. 04002_ Hacking Suite destroyed. 04005_ U-05 Engineer builds a Wall. 04015_ Critical hit (Burn: +37). Map ----- +----------------------------------------------------+ | ?????????????????????????????????????????????????? | | ?????????????????????????????????????????????????? | | ?????????????????????????????????????????????????? | | ?????????????????????????????????????????????????? | | ?????????????????????????????????????????????????? | | ?????????????????????????????????????????????????? | | ?????????????????????????????????????????????????? | | ?????????????????????????????????????????????????? | | ?????????????????????????????????????????????????? | | ?????????????????????????????????????????????????? | | ?????????????????????????????????????????????????? | | ?????????????????????????????????????????????????? | | ?????????????????????????????????????????????????? | | ?????????????????????????????????????????????????? | | ?????????????????????????????????????????????????? | | ?????????????????????????????????????????????????? | | ????????????????????????????????????????? ???????? | | ??????????????????????????????????????? ???????? | | ????????????????????????????????????? ??????? | | ?????????????##?????????##????????? ??????? | | ##################################R ??????? | | % % g ?????? | | n g u k ?????? | | % % u g t % ????? | | % k BB ????? | | R R % @ BB ????? | | ################################## ????? | | ????????????????????##???????????????? ???????? | | ?????????????????????????????????????????????????? | | ?????????????????????????????????????????????????? | | ?????????????????????????????????????????????????? | | ?????????????????????????????????????????????????? | | ?????????????????????????????????????????????????? | | ?????????????????????????????????????????????????? | | | | | | | | | | | | | | | | | | | | | | | | | | | | | | | | | +----------------------------------------------------+ Best States ------------- Heat Dissipation 64 Energy Generation 31 Energy Capacity 335 Matter Stores 300 Matter Capacity 300 Sight Range 20 Robot Scan Range 14 Terrain Scan Range 16 Terrain Scan Density 10 ECM Strength 1 Armor Coverage 600 Resistance: EM 15 Power Shielding 33 Evasion (%) 44 Recoil Reduction 2 Offensive Hacking 10 Item Schematics ----------------- None Robot Schematics ------------------ None Fabricated ------------ Nothing Repaired ---------- Nothing Alien Tech Used ----------------- None Achievements -------------- Serviceable Loadout Challenges ------------ None Game ------ Seed DeliveryFieldthrustDriver Manual? 0 Play Time 01:16:25 Cumulative 7.8 hours Start 2025.08.01 @ 18:57:35 End 2025.08.01 @ 20:24:37 Sessions 1 Manual Loads 0 Difficulty Rogue Special Mode None Game No. 16 Rogue 16 Adventurer 0 Explorer 0 Win Type - Total 0 Types 0/0/0/0/0/0/0/0/0/0 Lore% 5 Gallery% 11 Achievement% 10 Wizard Run 0 Options --------- Layout 0 ASCII 0 Keyboard 0 Movement Arrows Keybinds 0 Fullscreen 1 Font 20/SmallcapsGlow Map View 66x50 Zoom Use 0% Tactical HUD 1 Map Filters NONE Filters NONE Steam 1 RUN: 91bacd61-598a-4246-97ea-a970ed9dd619